fUSD/lending_fUSD_20241125
["ID","MTS","AMOUNT","RATE_DAILY","PERIOD"]
[343263052,1732536638351,-591.25,0.00038398,21]
[343263053,1732536638360,-500.0,0.00038398,21]
[343263054,1732536638370,-500.0,0.00038398,21]
[343263055,1732536638380,-500.0,0.00038398,21]
[343263056,1732536638389,-486.41849671,0.00038398,21]
[343263057,1732536638398,-508.50288166,0.00038398,21]
[343263058,1732536638407,-437.50088485,0.00038398,21]
[343263059,1732536638417,-500.0,0.00038398,21]
[343263060,1732536638429,-500.0,0.00038398,21]
[343263061,1732536638438,-2862.22,0.00038398,21]
[343263062,1732536638447,-506.6671353,0.00038398,21]
[343263063,1732536638456,-500.0,0.00038398,21]
[343263064,1732536638465,-500.0,0.00038398,21]
[343263066,1732536638474,-503.93273377,0.00038398,21]
[343263068,1732536638484,-500.0,0.00038398,21]
[343263070,1732536638493,-500.0,0.00038398,21]
[343263072,1732536638502,-500.0,0.00038398,21]
[343263074,1732536638511,-500.0,0.00038398,21]
[343263076,1732536638521,-500.0,0.00038398,21]
[343263078,1732536638530,-500.0,0.00038398,21]
[343263079,1732536638540,-500.0,0.00038398,21]
[343263082,1732536638552,-500.0,0.00038398,21]
[343263084,1732536638561,-507.02345244,0.00038398,21]
[343263086,1732536638571,-500.0,0.00038398,21]
[343263088,1732536638588,-500.0,0.00038398,21]
[343263090,1732536638598,-249.0987214,0.00038398,21]
[343263091,1732536638607,-500.0,0.00038398,21]
[343263093,1732536638616,-594.32,0.00038398,21]
[343263095,1732536638627,-818.24,0.00038398,21]
[343263097,1732536638636,-509.58238323,0.00038398,21]
[343263099,1732536638645,-500.0,0.00038398,21]
[343263101,1732536638655,-5698.56,0.00038398,21]
[343263103,1732536638664,-507.02045159,0.00038398,21]
[343263105,1732536638673,-500.0,0.00038398,21]
[343263107,1732536638683,-500.0,0.00038398,21]
[343263109,1732536638692,-500.0,0.00038398,21]
[343263111,1732536638702,-2231.16,0.00038398,21]
[343263113,1732536638711,-500.0,0.00038398,21]
[343263115,1732536638720,-500.0,0.00038398,21]
[343263118,1732536638730,-503.77774354,0.00038398,21]
[343263119,1732536638739,-500.0,0.00038398,21]
[343263121,1732536638748,-560.21,0.00038398,21]
[343263123,1732536638757,-500.0,0.00038398,21]
[343263125,1732536638767,-3033.86,0.00038398,21]
[343263127,1732536638776,-500.0,0.00038398,21]
[343263130,1732536638785,-506.74918329,0.00038398,21]
[343263131,1732536638795,-500.0,0.00038398,21]
[343263133,1732536638804,-502.43720977,0.00038398,21]
[343263136,1732536638814,-434.5304723,0.00038398,21]
[343263137,1732536638823,-574.77,0.00038628,21]
[343263140,1732536638836,-1000.0,0.00038629,2]
[343263142,1732536638846,-362.44646379,0.0003863,21]
[343263143,1732536638855,-251.40931296,0.0003863,21]
[343263145,1732536638865,-500.0,0.0003863,21]
[343263148,1732536638874,-500.0,0.0003863,21]
[343263149,1732536638883,-500.0,0.0003863,21]
[343263151,1732536638893,-500.0,0.0003863,21]
[343263153,1732536638902,-500.0,0.0003863,21]
[343263155,1732536638911,-500.0,0.0003863,21]
[343263157,1732536638921,-500.0,0.0003863,21]
[343263159,1732536638930,-500.0,0.0003863,21]
[343263162,1732536638941,-500.0,0.0003863,21]
[343263164,1732536638950,-500.0,0.0003863,21]
[343263165,1732536638959,-500.0,0.0003863,21]
[343263167,1732536638969,-500.0,0.0003863,21]
[343263170,1732536638979,-500.0,0.0003863,21]
[343263171,1732536638988,-500.0,0.0003863,21]
[343263174,1732536638997,-500.0,0.0003863,21]
[343263176,1732536639008,-500.0,0.0003863,21]
[343263178,1732536639017,-500.0,0.0003863,21]
[343263180,1732536639026,-500.0,0.0003863,21]
[343263182,1732536639036,-500.0,0.0003863,21]
[343263184,1732536639045,-500.0,0.0003863,21]
[343263186,1732536639055,-500.0,0.0003863,21]
[343263188,1732536639064,-500.0,0.0003863,21]
[343263190,1732536639074,-500.0,0.0003863,21]
[343263192,1732536639090,-167.39,0.0003863,21]
[343263194,1732536639101,-500.0,0.0003863,21]
[343263196,1732536639110,-500.0,0.0003863,21]
[343263198,1732536639119,-500.0,0.0003863,21]
[343263200,1732536639128,-500.0,0.0003863,21]
[343263201,1732536639139,-500.0,0.0003863,21]
[343263203,1732536639148,-361.97,0.0003863,21]
[343263205,1732536639157,-500.0,0.0003863,21]
[343263207,1732536639168,-500.0,0.0003863,21]
[343263209,1732536639178,-500.0,0.0003863,21]
[343263212,1732536639188,-500.0,0.0003863,21]
[343263214,1732536639198,-500.0,0.0003863,21]
[343263216,1732536639207,-500.0,0.0003863,21]
[343263218,1732536639217,-500.0,0.0003863,21]
[343263220,1732536639226,-159.98991694,0.0003863,21]
[343263222,1732536639236,-355.27,0.0003863,21]
[343263224,1732536639245,-500.0,0.0003863,21]
[343263226,1732536639256,-675.2,0.0003863,21]
[343263228,1732536639267,-500.0,0.0003863,21]
[343263230,1732536639276,-464.72,0.0003863,7]
[343263232,1732536639285,-463.77,0.0003863,21]
[343263234,1732536639294,-500.0,0.0003863,21]
[343263236,1732536639304,-500.0,0.0003863,21]
[343263238,1732536639313,-1143.4,0.0003863,21]
[343263240,1732536639322,-500.0,0.0003863,21]
[343263242,1732536639335,-500.0,0.0003863,21]
[343263244,1732536639344,-500.0,0.0003863,21]
[343263246,1732536639353,-553.02,0.0003863,21]
[343263248,1732536639363,-401.14,0.0003863,21]
[343263250,1732536639372,-595.91,0.0003863,21]
[343263252,1732536639381,-500.0,0.0003863,21]
[343263254,1732536639391,-334.74,0.0003863,21]
[343263256,1732536639400,-415.48,0.0003863,21]
[343263258,1732536639410,-500.0,0.0003863,21]
[343263259,1732536639419,-500.0,0.0003863,21]
[343263260,1732536639430,-660.04,0.0003863,21]
[343263261,1732536639439,-500.0,0.0003863,21]
[343263262,1732536639449,-500.0,0.0003863,21]
[343263263,1732536639458,-500.0,0.0003863,21]
[343263264,1732536639468,-500.0,0.0003863,21]
[343263265,1732536639477,-500.0,0.0003863,21]
[343263266,1732536639487,-550.37,0.0003863,21]
[343263267,1732536639497,-188.23,0.0003863,21]
[343263268,1732536639507,-500.0,0.0003863,120]
[343263269,1732536639518,-500.0,0.0003863,21]
[343263270,1732536639527,-500.0,0.0003863,21]
[343263271,1732536639537,-915.74,0.0003863,21]
[343263272,1732536639546,-500.0,0.0003863,21]
[343263273,1732536639556,-500.0,0.0003863,21]
[343263274,1732536639566,-529.4,0.0003863,21]
[343263275,1732536639578,-500.0,0.0003863,21]
[343263276,1732536639587,-500.0,0.0003863,21]
[343263277,1732536639596,-500.0,0.0003863,21]
[343263278,1732536639606,-500.0,0.0003863,21]
[343263279,1732536639617,-500.0,0.0003863,21]
[343263280,1732536639625,-500.0,0.0003863,21]
[343263282,1732536639635,-525.72,0.0003863,21]
[343263283,1732536639644,-434.75,0.0003863,21]
[343263284,1732536639654,-661.32,0.0003863,21]
[343263285,1732536639663,-636.22,0.0003863,21]
[343263286,1732536639673,-500.0,0.0003863,21]
[343263287,1732536639683,-592.89,0.0003863,21]
[343263288,1732536639692,-437.55,0.0003863,21]
[343263289,1732536639703,-500.0,0.0003863,21]
[343263290,1732536639713,-500.0,0.0003863,21]
[343263291,1732536639723,-500.0,0.0003863,21]
[343263292,1732536639732,-500.0,0.0003863,21]
[343263294,1732536639742,-500.0,0.0003863,21]
[343263296,1732536639751,-500.0,0.0003863,21]
[343263298,1732536639760,-500.0,0.0003863,21]
[343263300,1732536639770,-501.9,0.0003863,21]
[343263301,1732536639779,-500.0,0.0003863,21]
[343263302,1732536639789,-500.0,0.0003863,21]
[343263304,1732536639798,-500.0,0.0003863,21]
[343263306,1732536639807,-500.0,0.0003863,21]
[343263309,1732536639817,-500.0,0.0003863,21]
[343263310,1732536639827,-300.0,0.0003863,21]
[343263311,1732536639837,-500.0,0.0003863,21]
[343263312,1732536639846,-500.0,0.0003863,21]
[343263313,1732536639855,-500.0,0.0003863,21]
[343263314,1732536639865,-890.91,0.0003863,21]
[343263315,1732536639874,-500.0,0.0003863,21]
[343263316,1732536639884,-500.0,0.0003863,21]
[343263317,1732536639894,-500.0,0.0003863,21]
[343263318,1732536639903,-500.0,0.0003863,21]
[343263319,1732536639912,-179.94,0.0003863,21]
[343263320,1732536639922,-500.0,0.0003863,21]
[343263321,1732536639933,-500.0,0.0003863,21]
[343263322,1732536639946,-500.0,0.0003863,21]
[343263323,1732536639955,-500.0,0.0003863,21]
[343263324,1732536639965,-500.0,0.0003863,21]
[343263325,1732536639975,-500.0,0.0003863,21]
[343263326,1732536639986,-500.0,0.0003863,21]
[343263327,1732536639995,-500.0,0.0003863,21]
[343263328,1732536640004,-500.0,0.0003863,21]
[343263329,1732536640014,-500.0,0.0003863,21]
[343263330,1732536640023,-389.0389616,0.0003863,21]
[343263331,1732536640033,-500.0,0.0003863,21]
[343263332,1732536640042,-500.0,0.0003863,21]
[343263333,1732536640051,-500.0,0.0003863,21]
[343263334,1732536640061,-500.0,0.0003863,21]
[343263335,1732536640071,-500.0,0.0003863,21]
[343263336,1732536640082,-500.0,0.0003863,21]
[343263337,1732536640093,-500.0,0.0003863,21]
[343263338,1732536640107,-500.0,0.0003863,21]
[343263339,1732536640116,-457.62,0.0003863,21]
[343263340,1732536640126,-500.0,0.0003863,21]
[343263341,1732536640136,-500.0,0.0003863,21]
[343263342,1732536640147,-500.0,0.0003863,21]
[343263343,1732536640157,-500.0,0.0003863,21]
[343263344,1732536640166,-903.22,0.0003863,21]
[343263345,1732536640177,-500.0,0.0003863,21]
[343263346,1732536640186,-500.0,0.0003863,21]
[343263347,1732536640195,-500.0,0.0003863,21]
[343263348,1732536640204,-500.0,0.0003863,21]
[343263349,1732536640213,-500.0,0.0003863,21]
[343263350,1732536640223,-500.0,0.0003863,21]
[343263351,1732536640232,-500.0,0.0003863,21]
[343263352,1732536640241,-500.0,0.0003863,21]
[343263353,1732536640251,-783.23,0.0003863,21]
[343263354,1732536640260,-5000.0,0.0003863,21]
[343263355,1732536640270,-500.0,0.0003863,21]
[343263357,1732536640279,-500.0,0.0003863,21]
[343263359,1732536640288,-500.0,0.0003863,21]
[343263360,1732536640297,-500.0,0.0003863,21]
[343263361,1732536640306,-500.0,0.0003863,21]
[343263362,1732536640316,-500.0,0.0003863,21]
[343263363,1732536640327,-500.0,0.0003863,21]
[343263364,1732536640336,-503.58,0.0003863,21]
[343263365,1732536640346,-500.0,0.0003863,21]
[343263366,1732536640355,-1024.03,0.0003863,21]
[343263367,1732536640364,-500.0,0.0003863,21]
[343263368,1732536640373,-500.0,0.0003863,21]
[343263369,1732536640383,-500.0,0.0003863,21]
[343263370,1732536640392,-492.7,0.0003863,21]
[343263371,1732536640402,-500.0,0.0003863,21]
[343263372,1732536640411,-500.0,0.0003863,21]
[343263373,1732536640420,-500.0,0.0003863,21]
[343263374,1732536640429,-500.0,0.0003863,21]
[343263375,1732536640438,-500.0,0.0003863,21]
[343263376,1732536640448,-500.0,0.0003863,21]
[343263377,1732536640458,-500.0,0.0003863,21]
[343263378,1732536640468,-334.46350043,0.0003863,21]
[343263379,1732536640477,-349.93145575,0.0003863,21]
[343263380,1732536640487,-500.0,0.0003863,21]
[343263381,1732536640497,-500.0,0.0003863,21]
[343263382,1732536640506,-500.0,0.0003863,21]
[343263383,1732536640515,-168.12968745,0.0003863,21]
[343263384,1732536640524,-500.0,0.0003863,21]
[343263385,1732536640533,-500.0,0.0003863,21]
[343263386,1732536640543,-2874.42,0.0003863,21]
[343263387,1732536640553,-500.0,0.0003863,21]
[343263388,1732536640563,-500.0,0.0003863,21]
[343263389,1732536640572,-407.46,0.0003863,21]
[343263390,1732536640585,-500.0,0.0003863,21]
[343263391,1732536640594,-775.26,0.0003863,21]
[343263392,1732536640604,-500.0,0.0003863,21]
[343263393,1732536640614,-323.15450072,0.0003863,21]
[343263394,1732536640624,-552.41,0.0003863,21]
[343263395,1732536640634,-500.0,0.0003863,21]
[343263396,1732536640644,-500.0,0.0003863,21]
[343263397,1732536640653,-500.0,0.0003863,21]
[343263398,1732536640663,-3082.64,0.0003863,21]
[343263399,1732536640673,-500.0,0.0003863,21]
[343263400,1732536640683,-500.0,0.0003863,21]
[343263401,1732536640692,-500.0,0.0003863,21]
[343263402,1732536640702,-500.0,0.0003863,21]
[343263403,1732536640711,-500.0,0.0003863,21]
[343263404,1732536640720,-500.0,0.0003863,21]
[343263405,1732536640730,-500.0,0.0003863,21]
[343263406,1732536640739,-689.26,0.0003863,21]
[343263407,1732536640748,-739.61,0.0003863,21]
[343263408,1732536640758,-500.0,0.0003863,21]
[343263409,1732536640767,-500.0,0.0003863,21]
[343263410,1732536640776,-3431.21,0.0003863,21]
[343263411,1732536640785,-535.48,0.0003863,21]
[343263412,1732536640795,-2326.47,0.0003863,21]
[343263413,1732536640805,-500.0,0.0003863,21]
[343263414,1732536640815,-659.22,0.0003863,21]
[343263415,1732536640825,-8053.63,0.0003863,21]
[343263416,1732536640837,-939.05,0.0003863,21]
[343263417,1732536640847,-576.02,0.0003863,21]
[343263418,1732536640857,-8604.27,0.0003863,21]
[343263419,1732536640867,-500.0,0.0003863,21]
[343263420,1732536640877,-500.0,0.0003863,21]
[343263421,1732536640887,-500.0,0.0003863,21]
[343263422,1732536640897,-897.77,0.0003863,21]
[343263423,1732536640907,-500.0,0.0003863,21]
[343263424,1732536640917,-500.0,0.0003863,21]
[343263425,1732536640927,-500.0,0.0003863,21]
[343263426,1732536640937,-500.0,0.0003863,21]
[343263427,1732536640947,-500.0,0.0003863,21]
[343263428,1732536640957,-500.0,0.0003863,21]
[343263429,1732536640967,-500.0,0.0003863,21]
[343263430,1732536640977,-500.0,0.0003863,21]
[343263431,1732536640987,-747.44,0.0003863,21]
[343263432,1732536640997,-1247.78,0.0003863,21]
[343263433,1732536641006,-726.59,0.0003863,21]
[343263434,1732536641016,-1129.77,0.0003863,21]
[343263435,1732536641027,-963.68,0.0003863,21]
[343263436,1732536641036,-500.0,0.0003863,21]
[343263437,1732536641046,-500.0,0.0003863,21]
[343263438,1732536641056,-3123.05,0.0003863,21]
[343263439,1732536641066,-500.0,0.0003863,21]
[343263440,1732536641075,-500.0,0.0003863,21]
[343263441,1732536641091,-547.96,0.0003863,21]
[343263442,1732536641101,-500.0,0.0003863,21]
[343263443,1732536641111,-727.18,0.0003863,21]
[343263444,1732536641120,-8008.7,0.0003863,21]
[343263445,1732536641132,-500.0,0.0003863,21]
[343263446,1732536641141,-500.0,0.0003863,21]
[343263447,1732536641151,-913.31,0.0003863,21]
[343263448,1732536641162,-500.0,0.0003863,21]
[343263449,1732536641171,-500.0,0.0003863,21]
[343263450,1732536641180,-602.11,0.0003863,21]
[343263451,1732536641190,-500.0,0.0003863,21]
[343263452,1732536641200,-500.0,0.0003863,21]
[343263453,1732536641210,-1103.1,0.0003863,21]
[343263454,1732536641220,-1042.25,0.0003863,21]
[343263455,1732536641230,-500.0,0.0003863,21]
[343263456,1732536641240,-500.0,0.0003863,21]
[343263457,1732536641249,-500.0,0.0003863,21]
[343263458,1732536641259,-525.44,0.0003863,21]
[343263459,1732536641269,-500.0,0.0003863,21]
[343263460,1732536641279,-714.29,0.0003863,21]
[343263461,1732536641289,-1098.83,0.0003863,21]
[343263462,1732536641299,-599.99,0.0003863,21]
[343263463,1732536641309,-500.0,0.0003863,21]
[343263464,1732536641319,-542.44,0.0003863,21]
[343263465,1732536641329,-500.0,0.0003863,21]
[343263466,1732536641339,-500.0,0.0003863,21]
[343263467,1732536641348,-536.64,0.0003863,21]
[343263468,1732536641358,-500.0,0.0003863,21]
[343263469,1732536641368,-500.0,0.0003863,21]
[343263470,1732536641377,-3141.32,0.0003863,21]
[343263471,1732536641387,-500.0,0.0003863,21]
[343263472,1732536641396,-500.0,0.0003863,21]
[343263473,1732536641407,-1749.61,0.0003863,21]
[343263474,1732536641416,-520.31,0.0003863,21]
[343263475,1732536641426,-3086.47,0.0003863,21]
[343263476,1732536641436,-999.78,0.0003863,21]
[343263477,1732536641446,-500.0,0.0003863,21]
[343263478,1732536641456,-516.76,0.0003863,21]
[343263479,1732536641467,-599.84,0.0003863,21]
[343263480,1732536641476,-500.0,0.0003863,21]
[343263481,1732536641486,-500.0,0.0003863,21]
[343263482,1732536641496,-843.37,0.0003863,21]
[343263483,1732536641506,-500.0,0.0003863,21]
[343263484,1732536641515,-897.11,0.0003863,21]
[343263485,1732536641525,-1516.6,0.0003863,21]
[343263486,1732536641535,-4321.07,0.0003863,21]
[343263487,1732536641545,-500.0,0.0003863,21]
[343263488,1732536641554,-1501.72,0.0003863,21]
[343263489,1732536641564,-500.0,0.0003863,21]
[343263490,1732536641574,-500.0,0.0003863,21]
[343263491,1732536641586,-3276.7,0.0003863,21]
[343263492,1732536641596,-21441.79,0.0003863,21]
[343263493,1732536641606,-500.0,0.0003863,21]
[343263494,1732536641615,-500.0,0.0003863,21]
[343263495,1732536641625,-500.0,0.0003863,21]
[343263496,1732536641635,-2334.22,0.0003863,21]
[343263497,1732536641645,-1941.42,0.0003863,21]
[343263498,1732536641655,-500.0,0.0003863,21]
[343263499,1732536641666,-500.0,0.0003863,21]
[343263500,1732536641676,-500.0,0.0003863,21]
[343263501,1732536641686,-500.0,0.0003863,21]
[343263502,1732536641696,-500.0,0.0003863,21]
[343263503,1732536641706,-500.0,0.0003863,21]
[343263504,1732536641716,-500.0,0.0003863,21]
[343263505,1732536641726,-500.0,0.0003863,21]
[343263506,1732536641736,-1034.74,0.0003863,21]
[343263507,1732536641746,-548.14,0.0003863,21]
[343263508,1732536641756,-500.0,0.0003863,21]
[343263509,1732536641766,-467.73,0.0003863,21]
[343263510,1732536641776,-1055.46,0.0003863,21]
[343263511,1732536641785,-500.0,0.0003863,21]
[343263512,1732536641795,-372.70375563,0.0003863,21]
[343263513,1732536641805,-574.77,0.00038671,21]
[343263514,1732536641815,-517.20860602,0.00038672,21]
[343263515,1732536641824,-500.0,0.00038672,21]
[343263516,1732536641839,-500.0,0.00038672,21]
[343263517,1732536641848,-500.0,0.00038672,21]
[343263518,1732536641858,-500.0,0.00038672,21]
[343263519,1732536641868,-500.0,0.00038672,21]
[343263520,1732536641879,-500.0,0.00038672,21]
[343263521,1732536641889,-500.0,0.00038672,21]
[343263522,1732536641898,-500.0,0.00038672,21]
[343263523,1732536641908,-500.0,0.00038672,21]
[343263524,1732536641918,-500.0,0.00038672,21]
[343263525,1732536641928,-500.0,0.00038672,21]
[343263526,1732536641937,-397.87,0.00038672,21]
[343263527,1732536641947,-500.0,0.00038672,21]
[343263528,1732536641956,-412.1,0.00038672,21]
[343263529,1732536641966,-500.0,0.00038672,21]
[343263530,1732536641975,-195.6,0.00038672,21]
[343263531,1732536641985,-500.0,0.00038672,21]
[343263532,1732536641995,-500.0,0.00038672,21]
[343263533,1732536642005,-500.0,0.00038672,21]
[343263534,1732536642015,-500.0,0.00038672,21]
[343263535,1732536642024,-500.0,0.00038672,21]
[343263536,1732536642034,-500.0,0.00038672,21]
[343263537,1732536642044,-500.0,0.00038672,21]
[343263538,1732536642053,-500.0,0.00038672,21]
[343263539,1732536642063,-500.0,0.00038672,21]
[343263540,1732536642073,-500.0,0.00038672,21]
[343263541,1732536642085,-500.0,0.00038672,21]
[343263542,1732536642095,-500.0,0.00038672,21]
[343263543,1732536642108,-181.78388771,0.00038672,21]
[343263544,1732536642118,-500.0,0.00038672,21]
[343263545,1732536642127,-500.0,0.00038672,21]
[343263546,1732536642138,-500.0,0.00038672,21]
[343263547,1732536642147,-318.95,0.00038672,21]
[343263548,1732536642157,-500.0,0.00038672,21]
[343263549,1732536642167,-500.0,0.00038672,21]
[343263550,1732536642179,-173.21,0.00038672,21]
[343263551,1732536642190,-500.0,0.00038672,21]
[343263552,1732536642200,-500.0,0.00038672,21]
[343263553,1732536642209,-500.0,0.00038672,21]
[343263554,1732536642219,-500.0,0.00038672,21]
[343263555,1732536642229,-500.0,0.00038672,21]
[343263556,1732536642240,-208.54,0.00038672,21]
[343263557,1732536642251,-500.0,0.00038672,21]
[343263558,1732536642261,-771.52,0.00038672,21]
[343263559,1732536642273,-500.0,0.00038672,21]
[343263560,1732536642284,-500.0,0.00038672,21]
[343263561,1732536642294,-500.0,0.00038672,21]
[343263562,1732536642304,-500.0,0.00038672,21]
[343263563,1732536642314,-500.0,0.00038672,21]
[343263564,1732536642324,-500.0,0.00038672,21]
[343263565,1732536642336,-500.0,0.00038672,21]
[343263566,1732536642346,-500.0,0.00038672,21]
[343263567,1732536642356,-500.0,0.00038672,21]
[343263568,1732536642366,-500.0,0.00038672,21]
[343263569,1732536642376,-500.0,0.00038672,21]
[343263570,1732536642386,-500.0,0.00038672,21]
[343263571,1732536642396,-508.94897693,0.00038672,21]
[343263572,1732536642405,-500.0,0.00038672,21]
[343263573,1732536642415,-500.0,0.00038672,21]
[343263574,1732536642426,-500.0,0.00038672,21]
[343263575,1732536642436,-500.0,0.00038672,21]
[343263576,1732536642446,-500.0,0.00038672,21]
[343263577,1732536642456,-500.0,0.00038672,21]
[343263578,1732536642465,-500.0,0.00038672,21]
[343263579,1732536642476,-500.0,0.00038672,21]
[343263580,1732536642487,-500.0,0.00038672,21]
[343263581,1732536642497,-500.0,0.00038672,21]
[343263582,1732536642507,-658.45,0.00038672,21]
[343263583,1732536642517,-500.0,0.00038672,21]
[343263584,1732536642527,-537.28,0.00038672,21]
[343263585,1732536642538,-1976.25,0.00038672,21]
[343263586,1732536642547,-500.0,0.00038672,21]
[343263587,1732536642558,-500.0,0.00038672,21]
[343263588,1732536642567,-500.0,0.00038672,21]
[343263589,1732536642579,-500.0,0.00038672,21]
[343263590,1732536642588,-500.0,0.00038672,21]
[343263591,1732536642598,-876.13,0.00038672,21]
[343263592,1732536642608,-500.0,0.00038672,21]
[343263593,1732536642618,-500.0,0.00038672,21]
[343263594,1732536642628,-500.0,0.00038672,21]
[343263595,1732536642638,-514.52,0.00038672,21]
[343263596,1732536642647,-500.0,0.00038672,21]
[343263597,1732536642657,-500.0,0.00038672,21]
[343263598,1732536642667,-500.0,0.00038672,21]
[343263599,1732536642678,-500.0,0.00038672,21]
[343263600,1732536642689,-500.0,0.00038672,21]
[343263601,1732536642700,-585.88,0.00038672,21]
[343263602,1732536642710,-432.66,0.00038672,21]
[343263603,1732536642721,-500.0,0.00038672,21]
[343263604,1732536642731,-500.0,0.00038672,21]
[343263605,1732536642742,-500.0,0.00038672,21]
[343263606,1732536642752,-500.0,0.00038672,21]
[343263607,1732536642763,-500.0,0.00038672,21]
[343263608,1732536642773,-500.0,0.00038672,21]
[343263609,1732536642783,-500.0,0.00038672,21]
[343263610,1732536642792,-500.0,0.00038672,21]
[343263611,1732536642802,-500.0,0.00038672,21]
[343263612,1732536642824,-7241.01,0.00038672,21]
[343263613,1732536642836,-501.73905874,0.00038672,21]
[343263614,1732536642848,-1484.3,0.00038672,21]
[343263615,1732536642858,-500.0,0.00038672,21]
[343263616,1732536642868,-500.0,0.00038672,21]
[343263617,1732536642879,-500.0,0.00038672,21]
[343263618,1732536642889,-500.0,0.00038672,21]
[343263619,1732536642900,-656.71,0.00038672,21]
[343263621,1732536642910,-500.0,0.00038672,21]
[343263623,1732536642922,-500.0,0.00038672,21]
[343263625,1732536642932,-500.0,0.00038672,21]
[343263626,1732536642943,-500.0,0.00038672,21]
[343263627,1732536642953,-1219.29,0.00038672,21]
[343263628,1732536642964,-500.0,0.00038672,21]
[343263629,1732536642975,-1044.42,0.00038672,21]
[343263630,1732536642985,-500.0,0.00038672,21]
[343263631,1732536642996,-5313.62,0.00038672,21]
[343263632,1732536643008,-500.0,0.00038672,21]
[343263633,1732536643018,-500.0,0.00038672,21]
[343263634,1732536643029,-635.51,0.00038672,21]
[343263635,1732536643039,-1329.57,0.00038672,21]
[343263636,1732536643051,-500.0,0.00038672,21]
[343263637,1732536643063,-500.0,0.00038672,21]
[343263638,1732536643302,-506.03708327,0.00038672,21]
[343263639,1732536643312,-3316.78,0.00038672,21]
[343263640,1732536643322,-500.0,0.00038672,21]
[343263641,1732536643333,-500.0,0.00038672,21]
[343263642,1732536643343,-500.0,0.00038672,21]
[343263643,1732536643352,-500.0,0.00038672,21]
[343263644,1732536643362,-500.0,0.00038672,21]
[343263645,1732536643372,-514.83349196,0.00038672,21]
[343263646,1732536643381,-913.11,0.00038672,21]
[343263648,1732536643391,-505.80504196,0.00038672,21]
[343263650,1732536643400,-500.0,0.00038672,21]
[343263651,1732536643409,-528.36,0.00038672,21]
[343263653,1732536643419,-500.0,0.00038672,21]
[343263654,1732536643428,-1044.85,0.00038672,21]
[343263655,1732536643438,-500.0,0.00038672,21]
[343263657,1732536643447,-500.0,0.00038672,21]
[343263659,1732536643457,-500.0,0.00038672,21]
[343263660,1732536643467,-500.0,0.00038672,21]
[343263661,1732536643479,-500.0,0.00038672,21]
[343263662,1732536643488,-500.0,0.00038672,21]
[343263663,1732536643498,-500.0,0.00038672,21]
[343263664,1732536643507,-1961.52,0.00038672,21]
[343263665,1732536643516,-500.0,0.00038672,21]
[343263666,1732536643526,-500.0,0.00038672,21]
[343263667,1732536643536,-500.0,0.00038672,21]